bitfinex/quotes_BTCUSD_20220103
["timestamp","ask_amount","ask_price","bid_price","bid_amount"]
[1641216633338,0.05,47323.0,47319.0,0.0474]
[1641216633539,0.052829,47322.0,47319.0,0.0474]
[1641216633740,0.052829,47322.0,47320.0,0.343818]
[1641216633939,7.303e-05,47321.0,47320.0,1.32696343]
[1641216634138,7.303e-05,47321.0,47320.0,1.42696343]
[1641216634541,7.303e-05,47321.0,47320.0,0.546648]
[1641216635142,7.303e-05,47321.0,47320.0,0.594048]
[1641216635941,7.303e-05,47321.0,47320.0,0.25023]
[1641216636141,7.303e-05,47321.0,47320.0,0.15023]
[1641216637481,0.17989617,47321.0,47320.0,0.15023]
[1641216641125,0.17989617,47321.0,47320.0,0.15029]
[1641216644781,0.17989617,47321.0,47320.0,1.04375611]
[1641216644983,0.17989617,47321.0,47320.0,0.494108]
[1641216645181,0.17989617,47321.0,47320.0,1.48757411]
[1641216647887,0.04479467,47328.0,47321.0,1.66]
[1641216648091,0.052821,47326.0,47322.0,0.73118433]
[1641216648345,7.303e-05,47325.0,47323.0,0.052823]
[1641216648548,7.303e-05,47325.0,47324.0,0.391218]
[1641216648744,7.303e-05,47325.0,47324.0,0.441218]
[1641216648947,7.303e-05,47325.0,47324.0,0.541218]
[1641216649145,7.303e-05,47325.0,47324.0,1.43468411]
[1641216652489,7.303e-05,47325.0,47324.0,1.39468411]
[1641216652690,7.303e-05,47325.0,47324.0,1.38468411]
[1641216654090,7.303e-05,47325.0,47324.0,1.43468411]
[1641216656133,7.303e-05,47325.0,47324.0,0.541218]
[1641216656531,7.303e-05,47325.0,47324.0,0.541278]
[1641216659037,7.303e-05,47325.0,47324.0,1.45503869]
[1641216659501,7.303e-05,47325.0,47324.0,0.541278]
[1641216662502,7.303e-05,47325.0,47324.0,0.751278]
[1641216663095,7.303e-05,47325.0,47324.0,0.95350168]
[1641216663356,0.01770303,47325.0,47324.0,0.95350168]
[1641216663554,0.01770303,47325.0,47324.0,0.746278]
[1641216663755,0.02623603,47325.0,47324.0,0.746278]
[1641216663952,0.07623603,47325.0,47324.0,0.746278]
[1641216664252,0.105648,47328.0,47325.0,0.05282497]
[1641216664452,0.105648,47328.0,47326.0,0.396644]
[1641216664654,0.158474,47328.0,47326.0,0.496644]
[1641216665255,0.158474,47328.0,47326.0,0.546644]
[1641216666054,0.208474,47328.0,47326.0,0.546644]
[1641216666655,0.17479339,47328.0,47326.0,0.546644]
[1641216668884,0.18332639,47328.0,47326.0,0.546644]
[1641216670084,0.164181,47328.0,47326.0,0.546644]
[1641216670949,0.164181,47328.0,47326.0,0.15]
[1641216670950,0.29923002,47327.0,47326.0,0.15]
[1641216671150,0.29923002,47327.0,47326.0,0.05]
[1641216671552,0.29923002,47327.0,47326.0,0.25]
[1641216671749,0.29923002,47327.0,47326.0,0.25006]
[1641216672451,0.29923002,47327.0,47326.0,0.20006]
[1641216672652,0.29923002,47327.0,47324.0,0.31564994]
[1641216672653,1.07140802,47327.0,47324.0,0.31564994]
[1641216672851,1.07140802,47327.0,47320.0,0.0081692]
[1641216672852,0.2,47323.0,47320.0,0.0081692]
[1641216673050,0.252844,47322.0,47320.0,0.0081692]
[1641216673251,0.252844,47322.0,47320.0,0.05298678]
[1641216673451,0.543818,47321.0,47320.0,0.05298678]
[1641216674687,0.89768308,47321.0,47320.0,0.05298678]
[1641216676692,0.68768308,47321.0,47320.0,0.05298678]
[1641216676887,0.68768308,47321.0,47320.0,0.0081692]
[1641216677087,0.68768308,47321.0,47320.0,0.0581692]
[1641216677689,0.48768308,47321.0,47320.0,0.0581692]
[1641216678730,0.48768308,47321.0,47320.0,0.0458392]
[1641216679930,0.133818,47321.0,47320.0,0.0458392]
[1641216680133,0.34946276,47322.0,47320.0,0.0458392]
[1641216680331,0.266404,47321.0,47320.0,0.0458392]
[1641216681334,0.266404,47321.0,47320.0,0.0408392]
[1641216682681,0.39433133,47322.0,47320.0,0.0408392]
[1641216683280,0.39316133,47322.0,47320.0,0.0408392]
[1641216684181,0.04883,47322.0,47320.0,0.0408392]
[1641216684482,0.04383,47322.0,47320.0,0.0408392]
[1641216684685,0.09101307,47322.0,47320.0,0.0408392]
[1641216684881,0.04383,47322.0,47320.0,0.0408392]
[1641216685082,0.04383,47322.0,47321.0,0.28864975]
[1641216685483,0.04383,47322.0,47320.0,0.1408392]
[1641216685741,0.04383,47322.0,47320.0,0.0408392]
[1641216689144,0.04383,47322.0,47320.0,0.33028906]
[1641216689347,0.114223,47323.0,47321.0,0.29634987]
[1641216689594,0.061378,47323.0,47322.0,0.343874]
[1641216689997,0.061378,47323.0,47322.0,0.443874]
[1641216691697,0.061378,47323.0,47322.0,0.438874]
[1641216693274,0.061378,47323.0,47322.0,0.43815351]
[1641216695377,0.061378,47323.0,47322.0,0.43255351]
[1641216699489,0.061378,47323.0,47322.0,0.42755351]
[1641216699994,0.061378,47323.0,47321.0,0.052827]
[1641216700194,0.09683952,47323.0,47320.0,0.76842942]
[1641216700390,0.14967552,47323.0,47320.0,0.76842942]
[1641216700590,0.05,47322.0,47320.0,0.76842942]
[1641216701137,0.05,47322.0,47320.0,0.05571218]
[1641216701138,0.35311729,47322.0,47320.0,0.05571218]
[1641216702337,0.35311729,47322.0,47320.0,0.10571218]
[1641216702636,0.29993459,47321.0,47320.0,0.10571218]
[1641216702839,0.58266159,47321.0,47320.0,0.10571218]
[1641216706197,0.35311729,47322.0,47320.0,0.10571218]
[1641216706600,0.30311729,47322.0,47320.0,0.10571218]
[1641216706797,0.114214,47323.0,47320.0,0.10571218]
[1641216707200,0.114214,47323.0,47322.0,0.006]
[1641216707501,0.008534,47323.0,47322.0,0.006]
[1641216708347,0.008534,47323.0,47322.0,0.216]
[1641216708348,0.058534,47323.0,47322.0,0.216]
[1641216709149,0.043534,47323.0,47322.0,0.216]
[1641216709750,0.043534,47323.0,47322.0,0.21]
[1641216709949,0.04325046,47323.0,47322.0,0.21]
[1641216711151,0.08712204,47323.0,47322.0,0.21]
[1641216711350,0.04325046,47323.0,47322.0,0.21]
[1641216712201,0.05178346,47323.0,47322.0,0.21]
[1641216714004,0.35296092,47323.0,47322.0,0.21]
[1641216714202,0.33451046,47323.0,47322.0,0.21]
[1641216714804,0.05178346,47323.0,47322.0,0.21]
[1641216715404,0.33451046,47323.0,47322.0,0.21]
[1641216718846,0.05178346,47323.0,47322.0,0.21]
[1641216728103,0.33451046,47323.0,47322.0,0.21]
[1641216729906,0.64016379,47323.0,47322.0,0.21]
[1641216731251,0.33451046,47323.0,47322.0,0.21]
[1641216731646,0.05178346,47323.0,47322.0,0.21]
[1641216732047,0.33451046,47323.0,47322.0,0.21]
[1641216735990,0.63393537,47323.0,47322.0,0.21]
[1641216736190,0.63743864,47323.0,47322.0,0.21]
[1641216736396,0.33451046,47323.0,47322.0,0.21]
[1641216742800,0.05178346,47323.0,47322.0,0.21]
[1641216743001,0.008533,47323.0,47322.0,0.21]
[1641216745204,0.29126,47323.0,47322.0,0.21]
[1641216760105,0.29126,47323.0,47322.0,0.2067976]
[1641216761451,0.59477951,47323.0,47322.0,0.2067976]
[1641216761651,0.29126,47323.0,47322.0,0.2067976]
[1641216766193,0.58979306,47323.0,47322.0,0.2067976]
[1641216766894,0.58819277,47323.0,47322.0,0.2067976]
[1641216767099,0.29126,47323.0,47322.0,0.2067976]
[1641216781808,0.34126,47323.0,47322.0,0.2067976]
[1641216782817,0.29126,47323.0,47322.0,0.2067976]
[1641216790298,0.87062562,47323.0,47322.0,0.2067976]
[1641216790501,1.57300943,47323.0,47322.0,0.2067976]
[1641216790777,1.99468462,47323.0,47322.0,0.2067976]
[1641216791064,1.86,47321.0,47320.0,0.0081692]
[1641216791262,1.86,47321.0,47308.0,0.96027189]
[1641216791263,0.482727,47317.0,47308.0,0.96027189]
[1641216791461,0.10573,47311.0,47308.0,0.96027189]
[1641216791663,0.6074,47310.0,47309.0,0.00021909]
[1641216791863,0.482727,47308.0,47307.0,0.26237709]
[1641216792062,0.3914,47308.0,47307.0,0.26237709]
[1641216792264,0.69593756,47308.0,47307.0,0.26237709]
[1641216792462,1.19223183,47308.0,47307.0,0.26237709]
[1641216792664,1.52495883,47308.0,47307.0,0.26237709]
[1641216792864,1.47495883,47308.0,47307.0,0.26237709]
[1641216793266,1.52782283,47308.0,47307.0,0.26237709]
[1641216794367,1.52903725,47308.0,47307.0,0.26237709]
[1641216797428,2.02903725,47308.0,47307.0,0.26237709]
[1641216797930,2.86441639,47308.0,47307.0,0.26237709]
[1641216798540,2.02903725,47308.0,47307.0,0.26237709]
[1641216799338,2.02903725,47308.0,47307.0,0.47237709]
[1641216802707,2.52903725,47308.0,47307.0,0.47237709]
[1641216802907,2.94903725,47308.0,47307.0,0.47237709]
[1641216806646,2.44903725,47308.0,47307.0,0.47237709]
[1641216810307,3.50536776,47308.0,47307.0,0.47237709]
[1641216810705,3.55536776,47308.0,47307.0,0.47237709]
[1641216811506,3.50536776,47308.0,47307.0,0.47237709]
[1641216811906,3.55536776,47308.0,47307.0,0.47237709]
[1641216812912,3.50536776,47308.0,47307.0,0.47237709]
[1641216814944,3.50415334,47308.0,47307.0,0.47237709]
[1641216815144,3.50415334,47308.0,47307.0,0.52237709]
[1641216815345,3.45128934,47308.0,47307.0,0.52237709]
[1641216821160,2.95128934,47308.0,47307.0,0.52237709]
[1641216821961,3.45128934,47308.0,47307.0,0.52237709]
[1641216823467,3.2284458,47308.0,47307.0,0.52237709]
[1641216825892,2.39495883,47308.0,47307.0,0.52237709]
[1641216826697,2.49495883,47308.0,47307.0,0.52237709]
[1641216827094,2.49495883,47308.0,47307.0,0.47237709]
[1641216827296,2.60069983,47308.0,47307.0,0.47237709]
[1641216827696,3.4841868,47308.0,47307.0,0.47237709]
[1641216828947,2.65069983,47308.0,47307.0,0.47237709]
[1641216829149,3.6429064,47308.0,47307.0,0.47237709]
[1641216829350,3.4929064,47308.0,47307.0,0.47237709]
[1641216829547,3.4929064,47308.0,47307.0,0.52237709]
[1641216829848,3.33423532,47308.0,47307.0,0.52237709]
[1641216830247,2.50069983,47308.0,47307.0,0.52237709]
[1641216830648,2.60069983,47308.0,47307.0,0.52237709]
[1641216831248,2.60069983,47308.0,47307.0,0.47237709]
[1641216833595,2.60191015,47308.0,47307.0,0.47237709]
[1641216833795,2.65191015,47308.0,47307.0,0.47237709]
[1641216834495,3.24401015,47308.0,47307.0,0.47237709]
[1641216834703,4.35317767,47308.0,47307.0,0.47237709]
[1641216834897,4.35317767,47308.0,47307.0,7.09e-06]
[1641216835098,0.00122457,47305.0,47303.0,0.21518787]
[1641216835297,3.426227,47304.0,47303.0,0.21518787]
[1641216835495,3.426227,47304.0,47298.0,0.00827002]
[1641216835496,0.2,47302.0,47298.0,0.00827002]
[1641216835742,1.54998099,47299.0,47298.0,0.00827002]
[1641216835949,1.59866282,47299.0,47298.0,0.00827002]
[1641216836147,1.69866282,47299.0,47298.0,0.00827002]
[1641216836345,0.2,47295.0,47291.0,0.002]
[1641216836543,0.88037757,47292.0,47291.0,0.002]
[1641216836744,1.26191229,47292.0,47291.0,0.002]
[1641216837045,1.61392713,47292.0,47291.0,0.002]
[1641216837546,1.66681313,47292.0,47291.0,0.002]
[1641216839245,2.26102476,47292.0,47291.0,0.002]
[1641216839900,2.76102476,47292.0,47291.0,0.002]
[1641216842699,2.81102476,47292.0,47291.0,0.002]
[1641216842898,2.91102476,47292.0,47291.0,0.002]
[1641216843102,2.31681313,47292.0,47291.0,0.002]
[1641216843364,0.2,47290.0,47289.0,0.00011]
[1641216843561,1.67350963,47290.0,47289.0,0.00011]
[1641216843760,1.67350963,47290.0,47289.0,0.00047516]
[1641216843761,1.81750963,47290.0,47289.0,0.00047516]
[1641216844063,1.41,47289.0,47288.0,0.00011]
[1641216844262,2.476227,47289.0,47288.0,0.00011]
[1641216844462,2.576227,47289.0,47287.0,0.00011]
[1641216844661,1.218827,47288.0,47286.0,0.00011]
[1641216844863,1.266227,47287.0,47286.0,0.00011]
[1641216845067,1.366227,47287.0,47286.0,0.00011]
[1641216845267,1.366227,47287.0,47274.0,0.00744691]
[1641216845268,1.66,47286.0,47273.0,0.00011]
[1641216845471,0.258739,47280.0,47251.0,0.0053326]
[1641216845666,0.258739,47280.0,47241.0,1.78250909]
[1641216845667,0.0386674,47242.0,47241.0,1.79035695]
[1641216845863,0.0386674,47242.0,47241.0,0.84900909]
[1641216846064,0.0386674,47242.0,47241.0,0.85529068]
[1641216846264,0.0386674,47242.0,47241.0,0.84988547]
[1641216846466,0.0386674,47242.0,47241.0,0.00850381]
[1641216846864,0.02761824,47242.0,47241.0,0.00087638]
[1641216847097,0.02761824,47242.0,47241.0,0.34473938]
[1641216847295,0.02761824,47242.0,47241.0,0.44473938]
[1641216847994,0.02761824,47242.0,47241.0,0.64473938]
[1641216848195,0.02761824,47242.0,47241.0,0.54473938]
[1641216848393,0.02677694,47242.0,47241.0,0.54473938]
[1641216849495,0.02677694,47242.0,47241.0,0.64473938]
[1641216850097,0.02677694,47242.0,47241.0,0.54473938]
[1641216850295,0.02677694,47242.0,47241.0,0.64473938]
[1641216851357,0.02677694,47242.0,47241.0,0.54473938]
[1641216851758,0.00825048,47246.0,47244.0,0.03704374]
[1641216851960,0.00825048,47246.0,47244.0,0.13704374]
[1641216852159,0.00825048,47246.0,47245.0,0.05080335]
[1641216852458,0.2,47253.0,47245.0,0.05080335]
[1641216852661,0.282727,47252.0,47245.0,0.05080335]
[1641216852858,0.282727,47252.0,47246.0,0.00078509]
[1641216853357,0.282727,47252.0,47248.0,0.052918]
[1641216853559,0.282727,47252.0,47248.0,0.08995999]
[1641216853761,0.482727,47252.0,47249.0,0.00073032]
[1641216854158,0.482727,47252.0,47249.0,0.05073032]
[1641216854611,0.482727,47252.0,47250.0,0.00071206]
[1641216854812,0.482727,47252.0,47250.0,0.08538507]
[1641216855216,0.482727,47252.0,47251.0,0.0006938]
[1641216856216,0.282727,47252.0,47251.0,0.0006938]
[1641216856416,0.2474,47256.0,47252.0,0.08466714]
[1641216856617,0.2,47254.0,47253.0,0.05]
[1641216856817,0.482727,47254.0,47253.0,0.05065728]
[1641216857116,0.482727,47254.0,47253.0,0.05016728]
[1641216858120,0.47987119,47254.0,47253.0,0.05016728]
[1641216859459,0.47844328,47254.0,47253.0,0.05016728]
[1641216861860,0.52584328,47254.0,47253.0,0.05016728]
[1641216862917,0.52584328,47254.0,47253.0,0.05015728]
[1641216863717,1.02584328,47254.0,47253.0,0.05015728]
[1641216866156,1.02584328,47254.0,47253.0,0.00065728]
[1641216866757,1.02584328,47254.0,47253.0,0.00727778]
[1641216866956,1.02584328,47254.0,47253.0,0.00065728]
[1641216868557,1.3598811,47254.0,47253.0,0.00065728]
[1641216869901,0.24864128,47253.0,47252.0,0.00067554]
[1641216870100,1.03136828,47253.0,47252.0,0.00067554]
[1641216870300,1.03136828,47253.0,47251.0,0.0006938]
[1641216870501,0.47844328,47252.0,47251.0,0.0006938]
[1641216870900,0.47844328,47252.0,47250.0,0.00071206]
[1641216871101,0.19571628,47252.0,47251.0,0.0006938]
[1641216871302,0.47844328,47252.0,47250.0,0.05071206]
[1641216871500,0.19571628,47252.0,47251.0,0.0006938]
[1641216871700,0.97844328,47252.0,47251.0,0.0006938]
[1641216872304,0.97844328,47252.0,47250.0,0.05071206]
[1641216872503,0.47844328,47251.0,47250.0,0.05]
[1641216872706,0.84937328,47251.0,47250.0,0.05]
[1641216873004,0.84937328,47251.0,47250.0,0.05071206]
[1641216873441,0.52584328,47251.0,47250.0,0.05071206]
[1641216875145,1.02584328,47251.0,47250.0,0.05071206]
[1641216878236,1.52584328,47251.0,47250.0,0.05071206]
[1641216879939,1.52584328,47251.0,47250.0,0.00071206]
[1641216880340,0.19571628,47245.0,47243.0,0.00083986]
[1641216880541,0.31568163,47243.0,47242.0,0.052928]
[1641216880752,0.59840863,47243.0,47242.0,0.06351268]
[1641216880956,0.59840863,47243.0,47242.0,0.1143708]
[1641216881759,0.79412491,47243.0,47242.0,0.1143708]
[1641216882956,0.47844328,47243.0,47242.0,0.1143708]
[1641216884601,0.52584328,47243.0,47242.0,0.05085812]
[1641216884803,0.82443984,47243.0,47242.0,0.05085812]
[1641216885400,0.52584328,47243.0,47242.0,0.05085812]
[1641216886104,0.82529053,47243.0,47242.0,0.00085812]
[1641216886307,0.83411146,47243.0,47242.0,0.00085812]
[1641216886502,0.93411146,47243.0,47242.0,0.00085812]
[1641216886704,0.99533146,47243.0,47242.0,0.00085812]
[1641216887102,0.99533146,47243.0,47242.0,0.00671479]
[1641216887303,0.99533146,47243.0,47241.0,0.00087638]
[1641216887503,0.99533146,47243.0,47240.0,0.00011]
[1641216887504,0.87081319,47242.0,47240.0,0.00011]
[1641216887703,0.85367184,47241.0,47240.0,0.00011]
[1641216887904,1.35367184,47241.0,47240.0,0.00011]
[1641216888266,0.62227837,47229.0,47228.0,0.00828712]
[1641216888669,0.19571628,47229.0,47228.0,0.00828712]
[1641216888864,0.26427623,47231.0,47228.0,0.00828712]
[1641216889065,0.35258758,47236.0,47228.0,0.00958634]
[1641216889066,0.0474,47236.0,47228.0,0.00958634]
[1641216889265,0.0474,47236.0,47230.0,0.16940884]
[1641216889466,0.0474,47236.0,47231.0,0.05]
[1641216889665,0.0474,47236.0,47231.0,0.05016432]
[1641216889865,0.0474,47236.0,47228.0,0.00958634]
[1641216889866,0.2,47234.0,47232.0,0.00014606]
[1641216890066,0.80450378,47233.0,47232.0,0.00014606]
[1641216890269,0.85744578,47233.0,47232.0,0.00014606]
[1641216890468,0.583069,47233.0,47232.0,0.00014606]
[1641216891066,0.85493348,47233.0,47232.0,0.00014606]
[1641216892297,1.15946617,47233.0,47232.0,0.00014606]
[1641216893396,0.85493348,47233.0,47232.0,0.00014606]
[1641216893597,1.15958503,47233.0,47232.0,0.00014606]
[1641216894497,0.85493348,47233.0,47232.0,0.00014606]
[1641216895201,1.15254448,47233.0,47232.0,0.00014606]
[1641216895399,1.15516513,47233.0,47232.0,0.00014606]
[1641216895598,0.85493348,47233.0,47232.0,0.00014606]
[1641216895868,0.282727,47233.0,47232.0,0.00014606]
[1641216897269,0.482727,47233.0,47232.0,0.00594892]
[1641216897669,0.282727,47233.0,47232.0,0.00014606]
[1641216897873,0.58956426,47240.0,47232.0,0.33027456]
[1641216898071,0.58956426,47240.0,47237.0,0.09526556]
[1641216898271,0.58956426,47240.0,47238.0,0.29699108]
[1641216898272,0.282727,47239.0,47238.0,0.29699108]
[1641216898473,0.5,47241.0,47238.0,0.29699108]
[1641216898670,0.5,47241.0,47238.0,0.34699108]
[1641216898871,0.44567152,47239.0,47237.0,0.21936537]
[1641216899075,0.282727,47238.0,47237.0,0.21936537]
[1641216899273,0.44567152,47239.0,47237.0,0.50832218]
[1641216899526,0.000106,47243.0,47238.0,0.28924734]
[1641216899718,0.282727,47242.0,47238.0,0.40275825]
[1641216900318,0.282727,47242.0,47238.0,0.50861025]
[1641216900519,0.27987047,47242.0,47238.0,0.50861025]
[1641216901517,0.27987047,47242.0,47239.0,0.155853]
[1641216901722,0.27987047,47242.0,47239.0,0.18760846]
[1641216903559,0.000106,47243.0,47240.0,0.052924]
[1641216903759,0.000106,47243.0,47241.0,0.19053189]
[1641216903959,0.000106,47243.0,47241.0,0.24053189]
[1641216907699,0.000106,47243.0,47242.0,0.00535532]
[1641216907900,0.000106,47243.0,47241.0,0.24053189]
[1641216909901,0.000106,47243.0,47241.0,0.19053189]
[1641216910989,0.000106,47243.0,47242.0,0.05]
[1641216918669,0.000106,47243.0,47242.0,1.5312737]
[1641216918871,0.000106,47243.0,47242.0,0.3812737]
[1641216919072,0.000106,47243.0,47242.0,0.4812737]
[1641216919273,0.000106,47243.0,47242.0,0.57294968]
[1641216919472,0.58956426,47249.0,47242.0,0.57294968]
[1641216919473,0.58956426,47249.0,47245.0,0.1852025]
[1641216919771,0.00010955,47246.0,47245.0,0.208745]
[1641216919971,0.58956426,47249.0,47245.0,0.208745]
[1641216920176,0.82538996,47253.0,47245.0,0.208745]
[1641216920177,0.58956426,47253.0,47247.0,0.052917]
[1641216920570,7.303e-05,47250.0,47249.0,0.052917]
[1641216920771,7.303e-05,47250.0,47248.0,0.211668]
[1641216921170,7.303e-05,47250.0,47248.0,0.23812644]
[1641216922027,0.78678142,47253.0,47248.0,0.23812644]
[1641216922217,0.78678142,47253.0,47249.0,0.05292]
[1641216922417,0.58956426,47253.0,47251.0,0.105835]
[1641216922616,0.58956426,47253.0,47251.0,0.155835]
[1641216923317,0.84743936,47254.0,47251.0,0.18229444]
[1641216923516,0.5,47253.0,47251.0,0.20875412]
[1641216923918,0.70747711,47252.0,47251.0,0.20875412]
[1641216924517,0.70747711,47252.0,47251.0,0.23521355]
[1641216924918,1.32538996,47253.0,47251.0,0.23521355]
[1641216926551,1.52538996,47253.0,47251.0,0.23521355]
[1641216926754,1.52538996,47253.0,47251.0,0.20875412]
[1641216926953,0.2,47252.0,47251.0,0.20875412]
[1641216927152,1.02538996,47252.0,47251.0,0.20875412]
[1641216927554,0.82538996,47252.0,47251.0,0.20875412]
[1641216927754,0.5,47253.0,47251.0,0.23521343]
[1641216927954,0.5,47253.0,47251.0,0.20875412]
[1641216928355,0.2,47252.0,47251.0,0.20875412]
[1641216928558,1.33548861,47252.0,47251.0,0.20875412]
[1641216928854,0.50432192,47252.0,47251.0,0.20875412]
[1641216932504,0.2,47252.0,47251.0,0.20875412]
[1641216932705,0.2,47252.0,47251.0,0.23521336]
[1641216933350,0.49927386,47252.0,47251.0,0.23521336]
[1641216934248,0.2,47252.0,47251.0,0.23521336]
[1641216935550,0.2,47252.0,47251.0,0.2347389]
[1641216937113,0.50006879,47252.0,47251.0,0.2347389]
[1641216937310,0.2,47252.0,47251.0,0.2347389]
[1641216938312,1.03092282,47252.0,47251.0,0.2347389]
[1641216938713,0.2,47252.0,47251.0,0.2347389]
[1641216940313,0.49712054,47252.0,47251.0,0.2347389]
[1641216940760,0.2,47252.0,47251.0,0.2347389]
[1641216941960,0.50075312,47252.0,47251.0,0.2347389]
[1641216942460,0.2,47252.0,47251.0,0.2347389]
[1641216943569,0.79334393,47252.0,47251.0,0.2347389]
[1641216944167,0.2,47252.0,47251.0,0.2347389]
[1641216945210,0.79327009,47252.0,47251.0,0.2347389]
[1641216947213,0.2,47252.0,47251.0,0.2347389]
[1641216947419,1.03061574,47252.0,47251.0,0.2347389]
[1641216950265,1.03061574,47252.0,47251.0,0.23436774]
[1641216950478,1.03061574,47252.0,47243.0,0.05291423]
[1641216950479,0.29,47245.0,47243.0,0.05291423]
[1641216950866,0.29,47245.0,47244.0,0.00010955]
[1641216953420,0.29,47245.0,47244.0,0.51271349]
[1641216955518,0.29,47245.0,47244.0,0.30271349]
[1641216957552,0.28858451,47245.0,47244.0,0.30271349]
[1641216958352,0.05291622,47246.0,47244.0,0.30271349]
[1641216958553,0.05291622,47246.0,47244.0,0.35563249]
[1641216958752,0.05291622,47246.0,47245.0,0.29697559]
[1641216959529,0.55291622,47246.0,47245.0,0.29697559]
[1641216962518,0.5,47246.0,47245.0,0.29697559]
[1641216967105,0.5,47246.0,47245.0,9.129e-05]
[1641216968909,0.5,47246.0,47245.0,0.28902245]
[1641216970512,0.5,47246.0,47245.0,9.129e-05]
[1641216981054,0.05291674,47247.0,47245.0,9.129e-05]
[1641216981455,0.5,47246.0,47245.0,9.129e-05]
[1641216982510,1.09370116,47246.0,47245.0,9.129e-05]
[1641216985854,0.5,47246.0,47245.0,9.129e-05]
[1641216986055,1.09370116,47246.0,47245.0,9.129e-05]
[1641216988154,0.5,47246.0,47245.0,9.129e-05]
[1641216988756,0.55292278,47246.0,47244.0,0.052919]
[1641216992714,0.55292278,47246.0,47243.0,0.105847]
[1641216993017,0.10584488,47245.0,47244.0,0.00010955]
[1641216995078,0.05292541,47244.0,47241.0,0.00016432]
[1641216995276,0.5,47242.0,47241.0,0.00016432]
[1641216997808,0.70121683,47242.0,47241.0,0.00016432]
[1641216998008,0.74861683,47242.0,47241.0,0.00016432]
[1641216998211,0.74861683,47242.0,47237.0,0.00023735]
[1641216998408,0.25293547,47240.0,47237.0,0.00023735]
[1641216998608,0.2,47238.0,47237.0,0.00023735]
[1641216998807,0.2474,47238.0,47237.0,0.00023735]
[1641216999608,0.2474,47238.0,47233.0,0.00812325]
[1641216999609,0.2,47236.0,47233.0,0.00812325]
[1641216999808,0.52086037,47235.0,47233.0,0.00812325]
[1641217000007,0.38086157,47234.0,47233.0,0.00812325]
[1641217000208,0.71141241,47234.0,47229.0,0.052939]
[1641217000412,0.70998432,47234.0,47233.0,7.303e-05]
[1641217000609,1.20998432,47234.0,47233.0,7.303e-05]
[1641217000878,0.93237248,47234.0,47226.0,0.00020084]
[1641217001077,0.15881486,47231.0,47228.0,0.052939]
[1641217001279,0.15881486,47231.0,47228.0,0.105876]
[1641217001476,0.15881486,47231.0,47229.0,0.00014606]
[1641217001676,0.5,47230.0,47229.0,0.00014606]
[1641217002682,0.5,47230.0,47229.0,0.28856161]
[1641217003486,0.5,47230.0,47229.0,0.33856161]
[1641217003683,0.5,47230.0,47229.0,0.34456161]
[1641217003984,0.5,47230.0,47229.0,0.44456161]
[1641217004185,0.5,47230.0,47229.0,0.78890661]
[1641217005422,0.5,47230.0,47229.0,0.83630661]
[1641217006024,0.51306779,47249.0,47229.0,0.88630661]
[1641217006222,0.92697136,47248.0,47243.0,0.052918]
[1641217006421,0.59348388,47248.0,47243.0,0.052918]
[1641217006621,0.25120372,47247.0,47243.0,0.052918]
[1641217006820,0.30412283,47247.0,47243.0,0.052918]
[1641217007021,0.50016432,47246.0,47243.0,0.052918]
[1641217007423,0.00014606,47245.0,47244.0,0.052921]
[1641217013425,0.56330837,47245.0,47244.0,0.052921]
[1641217013627,0.36330837,47245.0,47244.0,0.052921]
[1641217014827,0.00014606,47245.0,47244.0,0.052921]
[1641217016075,0.00014606,47245.0,47244.0,0.262921]
[1641217018777,0.00014606,47245.0,47244.0,0.21]
[1641217019081,0.7934291,47245.0,47244.0,0.21]
[1641217019531,0.20014606,47245.0,47244.0,0.21]
[1641217020123,0.91208571,47245.0,47244.0,0.21]
[1641217020721,0.20014606,47245.0,47244.0,0.21]
[1641217021121,0.75014606,47245.0,47244.0,0.21]
[1641217021523,1.58074232,47245.0,47244.0,0.21]
[1641217021924,1.95178816,47245.0,47244.0,0.21]
[1641217022623,1.90178816,47245.0,47244.0,0.21]
[1641217023028,1.95178816,47245.0,47244.0,0.21]
[1641217023277,2.09578816,47245.0,47244.0,0.21]
[1641217023481,2.09578816,47245.0,47230.0,0.00012781]
[1641217023482,0.26772586,47231.0,47230.0,0.00012781]
[1641217023679,0.82066445,47231.0,47230.0,0.00012781]
[1641217024077,0.82066445,47231.0,47229.0,0.00014606]
[1641217024283,0.82066445,47231.0,47225.0,0.105874]
[1641217024479,0.76772586,47231.0,47228.0,0.052939]
[1641217024779,0.92654119,47231.0,47230.0,0.21]
[1641217025179,1.17759039,47231.0,47230.0,0.21]
[1641217026079,1.17759039,47231.0,47228.0,0.052939]
[1641217026884,1.28346776,47231.0,47228.0,0.052939]
[1641217028316,1.17759039,47231.0,47228.0,0.052939]
[1641217031260,1.37759039,47231.0,47228.0,0.052939]
[1641217033165,0.90986453,47231.0,47228.0,0.052939]
[1641217033961,0.85692639,47231.0,47228.0,0.05921424]
[1641217034163,0.85692639,47231.0,47229.0,0.00510011]
[1641217034361,0.85692639,47231.0,47228.0,0.052939]
[1641217034622,0.85692639,47231.0,47228.0,0.05993205]
[1641217034827,0.85692639,47231.0,47229.0,0.00543395]
[1641217035025,0.85692639,47231.0,47230.0,0.00652615]
[1641217035224,0.85692639,47231.0,47228.0,0.042939]
[1641217035625,0.85692639,47231.0,47228.0,0.095877]
[1641217036525,0.85692639,47231.0,47228.0,0.38522582]
[1641217037929,0.85692639,47231.0,47228.0,0.38022582]
[1641217038128,0.85692639,47231.0,47228.0,0.43316082]
[1641217038574,0.85692639,47231.0,47228.0,0.53316082]
[1641217038777,0.85692639,47231.0,47228.0,0.63316082]
[1641217038974,0.85692639,47231.0,47228.0,0.58022582]
[1641217039375,0.85692639,47231.0,47229.0,0.052932]
[1641217039576,0.85692639,47231.0,47230.0,0.29286943]
[1641217039775,0.85692639,47231.0,47230.0,0.34286943]
[1641217040378,0.5,47231.0,47230.0,0.34286943]
[1641217040776,0.076565,47231.0,47230.0,0.34286943]
[1641217040979,0.076565,47231.0,47230.0,0.68721443]
[1641217041276,0.00827861,47235.0,47232.0,0.105854]
[1641217041477,0.00827861,47235.0,47233.0,0.31510226]
[1641217041676,9.129e-05,47234.0,47233.0,0.46510226]
[1641217041876,9.129e-05,47234.0,47233.0,0.41510226]
[1641217042124,9.129e-05,47234.0,47233.0,0.75944726]
[1641217042631,9.129e-05,47234.0,47233.0,0.40510226]
[1641217042826,9.129e-05,47234.0,47233.0,0.45510226]
[1641217043024,9.129e-05,47234.0,47233.0,0.50510226]
[1641217043623,0.00827856,47238.0,47233.0,0.50510226]
[1641217043824,0.00827856,47238.0,47235.0,0.105856]